fUST/lending_fUST_20250614
["ID","MTS","AMOUNT","RATE_DAILY","PERIOD"]
[365778347,1749907840723,-460.0,0.00022191,4]
[365778348,1749907840732,-460.0,0.00022191,4]
[365778350,1749907840741,-460.0,0.00022191,4]
[365778352,1749907840751,-460.0,0.00022191,4]
[365778354,1749907840760,-263.54288056,0.00022191,4]
[365778356,1749907840770,-460.0,0.00022191,4]
[365778358,1749907840780,-460.0,0.00022191,4]
[365778360,1749907840790,-1309.35,0.00022191,4]
[365778362,1749907840800,-400.0,0.00022191,4]
[365778364,1749907840813,-460.0,0.00022191,4]
[365778366,1749907840822,-590.0,0.00022191,4]
[365778368,1749907840831,-2860.28,0.00022191,4]
[365778370,1749907840840,-410.0,0.00022191,4]
[365778372,1749907840849,-460.0,0.00022191,4]
[365778374,1749907840858,-460.0,0.00022191,4]
[365778376,1749907840868,-460.0,0.00022191,4]
[365778378,1749907840877,-460.0,0.00022191,4]
[365778380,1749907840886,-460.0,0.00022191,4]
[365778382,1749907840895,-460.0,0.00022191,4]
[365778384,1749907840904,-1665.69,0.00022191,4]
[365778386,1749907840913,-460.0,0.00022191,4]
[365778387,1749907840922,-460.0,0.00022191,4]
[365778389,1749907840931,-460.0,0.00022191,4]
[365778391,1749907840940,-460.0,0.00022191,4]
[365778393,1749907840950,-460.0,0.00022191,4]
[365778395,1749907840960,-460.0,0.00022191,4]
[365778397,1749907840969,-460.0,0.00022191,4]
[365778399,1749907840978,-659.23,0.00022191,4]
[365778401,1749907840987,-417.419172,0.00022191,4]
[365778403,1749907840996,-460.0,0.00022191,4]
[365778405,1749907841005,-460.0,0.00022191,4]
[365778407,1749907841014,-291.27431669,0.00022191,4]
[365778409,1749907841023,-460.0,0.00022191,4]
[365778411,1749907841032,-460.0,0.00022191,4]
[365778413,1749907841041,-460.0,0.00022191,4]
[365778415,1749907841050,-462.55957941,0.00022191,4]
[365778417,1749907841059,-165.45516378,0.00022191,4]
[365778419,1749907841069,-460.0,0.00022191,4]
[365778421,1749907841079,-460.0,0.00022191,4]
[365778422,1749907841087,-460.0,0.00022191,4]
[365778424,1749907841096,-460.0,0.00022191,4]
[365778426,1749907841105,-460.0,0.00022191,4]
[365778428,1749907841115,-1153.73,0.00022191,4]
[365778430,1749907841124,-460.0,0.00022191,4]
[365778432,1749907841134,-460.0,0.00022191,4]
[365778434,1749907841143,-460.0,0.00022191,4]
[365778436,1749907841153,-460.0,0.00022191,4]
[365778438,1749907841162,-460.0,0.00022191,4]
[365778440,1749907841171,-817.31,0.00022191,4]
[365778442,1749907841180,-460.0,0.00022191,4]
[365778444,1749907841190,-1298.61,0.00022191,4]
[365778446,1749907841199,-460.0,0.00022191,4]
[365778448,1749907841208,-280.0,0.00022191,4]
[365778450,1749907841218,-460.0,0.00022191,4]
[365778452,1749907841227,-460.0,0.00022191,4]
[365778454,1749907841237,-85499.72,0.000222,7]
[365778456,1749907841247,-2557.13,0.000222,7]
[365778458,1749907841256,-159.07739539,0.000222,69]
[365778460,1749907841266,-845.10789306,0.000222,7]
[365778462,1749907841275,-506.93574518,0.00022213,2]
[365778464,1749907841284,-203.21945003,0.00022275,6]
[365778466,1749907841293,-424.40141186,0.00022361,2]
[365778468,1749907841302,-835.41710878,0.00022361,2]
[365778470,1749907841311,-160.0,0.00022361,2]
[365778472,1749907841321,-160.0,0.00022361,2]
[365778473,1749907841331,-213.28201367,0.00022361,2]
[365778475,1749907841341,-160.0,0.00022361,2]
[365778477,1749907841350,-229.82479369,0.00022361,2]
[365778479,1749907841359,-160.0,0.00022369,2]
[365778481,1749907841370,-160.0,0.00022369,2]
[365778483,1749907841379,-203.21945003,0.000224,7]
[365778485,1749907841389,-151.0,0.00022465,7]
[365778487,1749907841398,-151.0,0.00022465,7]
[365778489,1749907841407,-182.928972,0.00022465,7]
[365778491,1749907841417,-182.928972,0.00022465,7]
[365778493,1749907841426,-296.3297514,0.00022465,4]
[365778495,1749907841436,-206.200067,0.00022465,7]
[365778497,1749907841445,-206.200067,0.00022465,7]
[365778499,1749907841455,-460.0,0.00022465,4]
[365778501,1749907841464,-172.53651973,0.00022465,4]
[365778503,1749907841474,-460.0,0.00022465,4]
[365778505,1749907841483,-380.0,0.00022465,4]
[365778507,1749907841492,-380.0,0.00022465,4]
[365778509,1749907841500,-460.0,0.00022465,4]
[365778511,1749907841510,-382.50882578,0.00022465,4]
[365778513,1749907841519,-460.0,0.00022465,4]
[365778515,1749907841529,-234.15190336,0.00022465,4]
[365778517,1749907841538,-460.0,0.00022465,4]
[365778519,1749907841547,-460.0,0.00022465,4]
[365778521,1749907841556,-525.37569768,0.00022465,4]
[365778523,1749907841566,-460.0,0.00022465,4]
[365778524,1749907841575,-460.0,0.00022465,4]
[365778526,1749907841585,-460.0,0.00022465,4]
[365778528,1749907841595,-460.0,0.00022465,4]
[365778530,1749907841604,-293.68396146,0.00022465,4]
[365778532,1749907841614,-460.0,0.00022465,4]
[365778534,1749907841624,-460.0,0.00022465,4]
[365778536,1749907841634,-460.0,0.00022465,4]
[365778538,1749907841644,-460.0,0.00022465,4]
[365778540,1749907841653,-887.18,0.00022465,4]
[365778546,1749907841744,-460.0,0.00022465,4]
[365778547,1749907841754,-460.0,0.00022465,4]
[365778548,1749907841764,-460.0,0.00022465,4]
[365778549,1749907841773,-460.0,0.00022465,4]
[365778550,1749907841782,-460.0,0.00022465,4]
[365778551,1749907841792,-460.0,0.00022465,4]
[365778552,1749907841803,-460.0,0.00022465,4]
[365778553,1749907841816,-460.0,0.00022465,4]
[365778554,1749907841826,-460.0,0.00022465,4]
[365778555,1749907841836,-460.0,0.00022465,4]
[365778556,1749907841845,-460.0,0.00022465,4]
[365778557,1749907841855,-460.0,0.00022465,4]
[365778558,1749907841864,-460.0,0.00022465,4]
[365778559,1749907841874,-460.0,0.00022465,4]
[365778561,1749907841883,-460.0,0.00022465,4]
[365778562,1749907841893,-380.0,0.00022465,4]
[365778564,1749907841902,-270.22492835,0.00022465,4]
[365778566,1749907841912,-460.0,0.00022465,4]
[365778568,1749907841922,-460.0,0.00022465,4]
[365778569,1749907841932,-330.0,0.00022465,4]
[365778570,1749907841942,-460.0,0.00022465,4]
[365778571,1749907841951,-460.0,0.00022465,4]
[365778572,1749907841960,-460.0,0.00022465,4]
[365778573,1749907841970,-460.0,0.00022465,4]
[365778574,1749907841980,-460.0,0.00022465,4]
[365778575,1749907841990,-460.0,0.00022465,4]
[365778576,1749907841999,-500.0,0.00022465,4]
[365778577,1749907842009,-460.0,0.00022465,4]
[365778578,1749907842018,-460.0,0.00022465,4]
[365778579,1749907842028,-267.1825172,0.00022465,4]
[365778580,1749907842037,-460.0,0.00022465,4]
[365778581,1749907842047,-460.0,0.00022465,4]
[365778582,1749907842056,-460.0,0.00022465,4]
[365778583,1749907842066,-460.0,0.00022465,4]
[365778584,1749907842076,-406.26725662,0.00022465,4]
[365778585,1749907842086,-460.0,0.00022465,4]
[365778586,1749907842096,-460.0,0.00022465,4]
[365778587,1749907842106,-460.0,0.00022465,4]
[365778588,1749907842117,-460.0,0.00022465,4]
[365778589,1749907842128,-460.0,0.00022465,4]
[365778590,1749907842138,-460.0,0.00022465,4]
[365778591,1749907842148,-460.0,0.00022465,4]
[365778592,1749907842158,-460.0,0.00022465,4]
[365778593,1749907842169,-460.0,0.00022465,4]
[365778594,1749907842180,-1824.67,0.00022465,4]
[365778595,1749907842190,-460.0,0.00022465,4]
[365778596,1749907842200,-460.0,0.00022465,4]
[365778597,1749907842210,-380.0,0.00022465,4]
[365778598,1749907842220,-460.0,0.00022465,4]
[365778599,1749907842230,-460.0,0.00022465,4]
[365778600,1749907842239,-516.72,0.00022465,4]
[365778601,1749907842249,-460.0,0.00022465,4]
[365778602,1749907842259,-360.0,0.00022465,4]
[365778603,1749907842269,-460.0,0.00022465,4]
[365778604,1749907842279,-342.14020553,0.00022465,4]
[365778605,1749907842289,-460.0,0.00022465,4]
[365778606,1749907842299,-460.0,0.00022465,4]
[365778607,1749907842309,-500.0,0.00022465,4]
[365778608,1749907842318,-460.0,0.00022465,4]
[365778609,1749907842329,-460.0,0.00022465,4]
[365778610,1749907842339,-460.0,0.00022465,4]
[365778611,1749907842349,-460.0,0.00022465,4]
[365778612,1749907842358,-460.0,0.00022465,4]
[365778613,1749907842369,-400.98032784,0.00022465,4]
[365778614,1749907842380,-254.40680792,0.00022465,4]
[365778615,1749907842390,-460.0,0.00022465,4]
[365778616,1749907842400,-460.0,0.00022465,4]
[365778617,1749907842410,-362.44220295,0.00022465,4]
[365778618,1749907842420,-460.0,0.00022465,4]
[365778619,1749907842430,-460.0,0.00022465,4]
[365778620,1749907842440,-373.52,0.00022465,4]
[365778621,1749907842450,-500.0,0.00022465,4]
[365778622,1749907842459,-460.0,0.00022465,4]
[365778623,1749907842469,-460.0,0.00022465,4]
[365778624,1749907842479,-460.0,0.00022465,4]
[365778625,1749907842488,-460.0,0.00022465,4]
[365778626,1749907842498,-180.83,0.00022465,4]
[365778627,1749907842508,-460.0,0.00022465,4]
[365778629,1749907842518,-460.0,0.00022465,4]
[365778630,1749907842527,-460.0,0.00022465,4]
[365778632,1749907842537,-460.0,0.00022465,4]
[365778634,1749907842546,-460.0,0.00022465,4]
[365778635,1749907842556,-460.0,0.00022465,4]
[365778636,1749907842565,-460.0,0.00022465,4]
[365778637,1749907842576,-460.0,0.00022465,4]
[365778638,1749907842585,-460.0,0.00022465,4]
[365778639,1749907842595,-460.0,0.00022465,4]
[365778640,1749907842604,-460.0,0.00022465,4]
[365778641,1749907842614,-232.48,0.00022465,4]
[365778642,1749907842623,-460.0,0.00022465,4]
[365778644,1749907842632,-460.0,0.00022465,4]
[365778646,1749907842642,-460.0,0.00022465,4]
[365778647,1749907842651,-460.0,0.00022465,4]
[365778648,1749907842660,-372.86358554,0.00022465,4]
[365778649,1749907842670,-460.0,0.00022465,4]
[365778650,1749907842679,-460.0,0.00022465,2]
[365778652,1749907842690,-1726.2,0.00022465,4]
[365778654,1749907842700,-460.0,0.00022465,4]
[365778655,1749907842709,-222.34964914,0.00022465,4]
[365778657,1749907842718,-460.0,0.00022465,4]
[365778659,1749907842728,-460.0,0.00022465,4]
[365778661,1749907842737,-460.0,0.00022465,4]
[365778663,1749907842747,-460.0,0.00022465,4]
[365778664,1749907842757,-460.0,0.00022465,4]
[365778666,1749907842767,-460.0,0.00022465,4]
[365778668,1749907842777,-460.0,0.00022465,4]
[365778670,1749907842786,-1116.26,0.00022465,4]
[365778671,1749907842796,-460.0,0.00022465,4]
[365778673,1749907842807,-460.0,0.00022465,4]
[365778675,1749907842817,-1164.33,0.00022465,4]
[365778677,1749907842827,-460.0,0.00022465,4]
[365778678,1749907842836,-460.0,0.00022465,4]
[365778679,1749907842846,-967.63,0.00022465,4]
[365778680,1749907842855,-460.0,0.00022465,4]
[365778681,1749907842865,-460.0,0.00022465,4]
[365778682,1749907842874,-460.0,0.00022465,4]
[365778683,1749907842884,-460.0,0.00022465,4]
[365778684,1749907842894,-460.0,0.00022465,4]
[365778685,1749907842905,-460.0,0.00022465,4]
[365778686,1749907842915,-460.0,0.00022465,4]
[365778688,1749907842925,-1309.35,0.00022465,4]
[365778690,1749907842934,-460.0,0.00022465,4]
[365778691,1749907842944,-2860.28,0.00022465,4]
[365778692,1749907842953,-460.0,0.00022465,4]
[365778693,1749907842963,-460.0,0.00022465,4]
[365778694,1749907842973,-460.0,0.00022465,4]
[365778695,1749907842982,-417.12849798,0.00022465,4]
[365778696,1749907842992,-457.4490882,0.00022465,4]
[365778697,1749907843001,-171.71339719,0.00022465,4]
[365778698,1749907843010,-1665.69,0.00022465,4]
[365778699,1749907843020,-460.0,0.00022465,4]
[365778700,1749907843029,-460.0,0.00022465,4]
[365778701,1749907843039,-460.0,0.00022465,4]
[365778702,1749907843048,-460.0,0.00022465,4]
[365778703,1749907843057,-460.0,0.00022465,4]
[365778704,1749907843067,-460.0,0.00022465,4]
[365778705,1749907843076,-460.0,0.00022465,4]
[365778706,1749907843086,-659.23,0.00022465,4]
[365778707,1749907843096,-460.0,0.00022465,4]
[365778708,1749907843106,-460.0,0.00022465,4]
[365778709,1749907843116,-460.0,0.00022465,4]
[365778710,1749907843126,-460.0,0.00022465,4]
[365778711,1749907843136,-460.0,0.00022465,4]
[365778712,1749907843145,-460.0,0.00022465,4]
[365778713,1749907843155,-460.0,0.00022465,4]
[365778714,1749907843164,-460.0,0.00022465,4]
[365778715,1749907843174,-460.0,0.00022465,4]
[365778716,1749907843183,-460.0,0.00022465,4]
[365778717,1749907843194,-1153.73,0.00022465,4]
[365778718,1749907843203,-460.0,0.00022465,4]
[365778719,1749907843213,-460.0,0.00022465,4]
[365778720,1749907843223,-460.0,0.00022465,4]
[365778721,1749907843232,-380.0,0.00022465,4]
[365778722,1749907843241,-460.0,0.00022465,4]
[365778723,1749907843252,-817.31,0.00022465,4]
[365778724,1749907843262,-460.0,0.00022465,4]
[365778725,1749907843271,-1298.61,0.00022465,4]
[365778726,1749907843281,-367.6122997,0.00022465,4]
[365778727,1749907843290,-460.0,0.00022465,4]
[365778728,1749907843299,-460.0,0.00022465,4]
[365778729,1749907843309,-350.0,0.00022466,2]
[365778730,1749907843319,-500.0,0.00022473,2]
[365778731,1749907843329,-500.0,0.00022473,2]
[365778732,1749907843339,-76118.67,0.000225,2]
[365778733,1749907843348,-203.21945003,0.00022525,7]
[365778734,1749907843358,-506.93574518,0.00022609,2]
[365778735,1749907843367,-207.4,0.00022618,2]
[365778736,1749907843377,-203.21945003,0.0002265,7]
[365778737,1749907843386,-1000.0,0.00022721,2]
[365778738,1749907843396,-1007.44693787,0.00022721,2]
[365778739,1749907843406,-1000.0,0.00022721,2]
[365778740,1749907843415,-500.0,0.00022738,3]
[365778741,1749907843424,-446.93897582,0.00022739,4]
[365778742,1749907843433,-460.0,0.00022739,4]
[365778743,1749907843443,-460.0,0.00022739,4]
[365778744,1749907843452,-460.0,0.00022739,4]
[365778745,1749907843461,-460.0,0.00022739,4]
[365778746,1749907843471,-460.0,0.00022739,4]
[365778747,1749907843480,-460.0,0.00022739,4]
[365778748,1749907843490,-156.95776634,0.00022739,4]
[365778749,1749907843499,-460.0,0.00022739,4]
[365778750,1749907843575,-380.0,0.00022739,4]
[365778751,1749907843592,-460.0,0.00022739,4]
[365778752,1749907843602,-499.98064696,0.00022739,4]
[365778753,1749907843612,-460.0,0.00022739,4]
[365778754,1749907843622,-887.18,0.00022739,4]
[365778755,1749907843632,-370.0,0.00022739,4]
[365778756,1749907843642,-460.0,0.00022739,4]
[365778757,1749907843652,-460.0,0.00022739,4]
[365778758,1749907843661,-460.0,0.00022739,4]
[365778759,1749907843671,-342.42,0.00022739,4]
[365778760,1749907843681,-460.0,0.00022739,4]
[365778761,1749907843690,-460.0,0.00022739,4]
[365778762,1749907843700,-460.0,0.00022739,4]
[365778763,1749907843709,-460.0,0.00022739,4]
[365778764,1749907843719,-460.0,0.00022739,4]
[365778765,1749907843729,-460.0,0.00022739,4]
[365778766,1749907843738,-460.0,0.00022739,4]
[365778767,1749907843748,-460.0,0.00022739,4]
[365778768,1749907843758,-460.0,0.00022739,4]
[365778769,1749907843769,-460.0,0.00022739,4]
[365778770,1749907843778,-460.0,0.00022739,4]
[365778771,1749907843788,-293.62881099,0.00022739,4]
[365778772,1749907843798,-460.0,0.00022739,4]
[365778773,1749907843811,-217.61919221,0.00022739,4]
[365778774,1749907843820,-460.0,0.00022739,4]
[365778775,1749907843830,-460.0,0.00022739,4]
[365778776,1749907843840,-360.0,0.00022739,4]
[365778777,1749907843849,-460.0,0.00022739,4]
[365778778,1749907843859,-506.17206728,0.00022739,4]
[365778779,1749907843868,-340.0,0.00022739,4]
[365778780,1749907843877,-460.0,0.00022739,4]
[365778781,1749907843886,-329.44576336,0.00022739,4]
[365778782,1749907843987,-130.55423664,0.00022739,4]
[365778783,1749907843997,-460.0,0.00022739,4]
[365778784,1749907844007,-380.0,0.00022739,4]
[365778785,1749907844016,-460.0,0.00022739,4]
[365778786,1749907844026,-460.0,0.00022739,4]
[365778787,1749907844036,-370.0,0.00022739,4]
[365778788,1749907844045,-460.0,0.00022739,4]
[365778789,1749907844055,-460.0,0.00022739,4]
[365778790,1749907844065,-460.0,0.00022739,4]
[365778791,1749907844074,-460.0,0.00022739,4]
[365778792,1749907844084,-460.0,0.00022739,4]
[365778793,1749907844095,-486.02810468,0.00022739,4]
[365778794,1749907844104,-460.0,0.00022739,4]
[365778795,1749907844114,-1824.67,0.00022739,4]
[365778796,1749907844123,-460.0,0.00022739,4]
[365778797,1749907844132,-460.0,0.00022739,4]
[365778798,1749907844141,-460.0,0.00022739,4]
[365778799,1749907844151,-460.0,0.00022739,4]
[365778800,1749907844160,-516.72,0.00022739,4]
[365778801,1749907844169,-460.0,0.00022739,4]
[365778802,1749907844179,-460.0,0.00022739,4]
[365778803,1749907844188,-460.0,0.00022739,4]
[365778804,1749907844198,-460.0,0.00022739,4]
[365778805,1749907844208,-500.0,0.00022739,4]
[365778806,1749907844217,-460.0,0.00022739,4]
[365778807,1749907844227,-163.56806507,0.00022739,4]
[365778808,1749907844239,-296.43193493,0.00022739,4]
[365778809,1749907844248,-460.0,0.00022739,4]
[365778810,1749907844258,-460.0,0.00022739,4]
[365778811,1749907844270,-460.0,0.00022739,4]
[365778812,1749907844279,-460.0,0.00022739,4]
[365778813,1749907844289,-460.0,0.00022739,4]
[365778814,1749907844299,-460.0,0.00022739,4]
[365778815,1749907844308,-500.0,0.00022739,4]
[365778816,1749907844318,-209.32061377,0.00022739,4]
[365778817,1749907844327,-460.0,0.00022739,4]
[365778818,1749907844336,-460.0,0.00022739,4]
[365778819,1749907844346,-460.0,0.00022739,4]
[365778820,1749907844355,-460.0,0.00022739,4]
[365778821,1749907844365,-460.0,0.00022739,4]
[365778822,1749907844374,-460.0,0.00022739,4]
[365778823,1749907844383,-460.0,0.00022739,4]
[365778824,1749907844394,-406.21466182,0.00022739,4]
[365778825,1749907844617,-460.0,0.00021917,4]
[365778826,1749907844628,-460.0,0.00022191,4]
[365778827,1749907844638,-460.0,0.00022191,4]
[365778828,1749907844648,-460.0,0.00022465,4]
[365778829,1749907844659,-460.0,0.00022465,4]
[365778830,1749907844670,-53.78533818,0.00022739,4]
[365778831,1749907844679,-460.0,0.00022739,4]
[365778832,1749907844690,-460.0,0.00022739,4]
[365778833,1749907844700,-460.0,0.00022739,4]
[365778834,1749907844711,-460.0,0.00022739,4]
[365778835,1749907844721,-460.0,0.00022739,4]
[365778836,1749907844730,-460.0,0.00022739,4]
[365778837,1749907844740,-460.0,0.00022739,4]
[365778838,1749907844750,-460.0,0.00022739,4]
[365778839,1749907844760,-460.0,0.00022739,4]
[365778840,1749907844770,-460.0,0.00022739,4]
[365778841,1749907844780,-460.0,0.00022739,4]
[365778842,1749907844790,-529.09584801,0.00022739,4]
[365778843,1749907844800,-460.0,0.00022739,2]
[365778844,1749907844814,-1726.2,0.00022739,4]
[365778845,1749907844824,-460.0,0.00022739,4]
[365778846,1749907844837,-460.0,0.00022739,4]
[365778847,1749907844847,-460.0,0.00022739,4]
[365778848,1749907844858,-460.0,0.00022739,4]
[365778849,1749907844868,-460.0,0.00022739,4]
[365778850,1749907844878,-460.0,0.00022739,4]
[365778851,1749907844888,-460.0,0.00022739,4]
[365778852,1749907844899,-460.0,0.00022739,4]
[365778853,1749907844908,-1116.26,0.00022739,4]
[365778854,1749907844918,-460.0,0.00022739,4]
[365778855,1749907844928,-460.0,0.00022739,4]
[365778856,1749907844937,-1164.33,0.00022739,4]
[365778857,1749907844946,-460.0,0.00022739,4]
[365778858,1749907844956,-460.0,0.00022739,4]
[365778859,1749907844965,-967.63,0.00022739,4]
[365778860,1749907844974,-460.0,0.00022739,4]
[365778861,1749907844984,-460.0,0.00022739,4]
[365778862,1749907844993,-460.0,0.00022739,4]
[365778863,1749907845003,-460.0,0.00022739,4]
[365778864,1749907845013,-460.0,0.00022739,4]
[365778865,1749907845023,-460.0,0.00022739,4]
[365778866,1749907845033,-460.0,0.00022739,4]
[365778867,1749907845043,-1309.35,0.00022739,4]
[365778868,1749907845052,-460.0,0.00022739,4]
[365778869,1749907845062,-2860.28,0.00022739,4]
[365778870,1749907845071,-460.0,0.00022739,4]
[365778871,1749907845082,-460.0,0.00022739,4]
[365778872,1749907845092,-460.0,0.00022739,4]
[365778873,1749907845101,-1665.69,0.00022739,4]
[365778874,1749907845191,-460.0,0.00022739,4]
[365778875,1749907845202,-460.0,0.00022739,4]
[365778876,1749907845212,-460.0,0.00022739,4]
[365778877,1749907845222,-460.0,0.00022739,4]
[365778878,1749907845232,-460.0,0.00022739,4]
[365778879,1749907845242,-460.0,0.00022739,4]
[365778880,1749907845252,-460.0,0.00022739,4]
[365778881,1749907845263,-659.23,0.00022739,4]
[365778882,1749907845273,-460.0,0.00022739,4]
[365778883,1749907845283,-460.0,0.00022739,4]
[365778884,1749907845293,-460.0,0.00022739,4]
[365778885,1749907845303,-460.0,0.00022739,4]
[365778886,1749907845312,-460.0,0.00022739,4]
[365778887,1749907845322,-460.0,0.00022739,4]
[365778888,1749907845332,-460.0,0.00022739,4]
[365778889,1749907845341,-460.0,0.00022739,4]
[365778890,1749907845352,-460.0,0.00022739,4]
[365778891,1749907845363,-460.0,0.00022739,4]
[365778892,1749907845374,-1153.73,0.00022739,4]
[365778893,1749907845383,-460.0,0.00022739,4]
[365778894,1749907845394,-460.0,0.00022739,4]
[365778895,1749907845405,-460.0,0.00022739,4]
[365778896,1749907845415,-360.0,0.00022739,4]
[365778897,1749907845424,-817.31,0.00022739,4]
[365778898,1749907845433,-460.0,0.00022739,4]
[365778899,1749907845443,-1298.61,0.00022739,4]
[365778900,1749907845452,-460.0,0.00022739,4]
[365778901,1749907845461,-460.0,0.00022739,4]
[365778902,1749907845471,-467.52555373,0.00022739,4]
[365778903,1749907845480,-460.0,0.00022739,4]
[365778904,1749907845489,-203.21945003,0.00022775,7]
[365778905,1749907845498,-168.0,0.00022883,2]
[365778907,1749907845507,-203.21945003,0.000229,8]
[365778908,1749907845517,-500.0,0.00022973,2]
[365778909,1749907845526,-500.0,0.00022973,2]
[365778910,1749907845537,-500.0,0.00022973,2]
[365778911,1749907845547,-600.0,0.00022973,2]
[365778912,1749907845556,-38215.6346154,0.00022998,2]
[365778913,1749907845565,-151.0,0.00023,7]
[365778914,1749907845575,-151.0,0.00023,7]
[365778915,1749907845587,-182.928972,0.00023,7]
[365778916,1749907845596,-182.928972,0.00023,7]
[365778917,1749907845605,-206.200067,0.00023,7]
[365778918,1749907845615,-206.200067,0.00023,7]
[365778919,1749907845624,-540.0,0.00023,3]
[365778920,1749907845633,-5963.37362922,0.00023,2]
[365778921,1749907845643,-826.81317095,0.00023,2]
[365778922,1749907845653,-6020.85196694,0.00023,3]
[365778923,1749907845663,-15651.68263261,0.00023,2]
[365778924,1749907845672,-79895.66762674,0.00023,20]
[365778925,1749907845682,-506.93574518,0.00023004,2]
[365778926,1749907845692,-168.0,0.00023013,2]
[365778927,1749907845701,-460.0,0.00023013,4]
[365778928,1749907845711,-460.0,0.00023013,4]
[365778929,1749907845720,-340.04408824,0.00023013,4]
[365778931,1749907845730,-460.0,0.00023013,4]
[365778932,1749907845739,-460.0,0.00023013,4]
[365778934,1749907845749,-266.87892435,0.00023013,4]
[365778935,1749907845758,-460.0,0.00023013,4]
[365778936,1749907845769,-460.0,0.00023013,4]
[365778937,1749907845782,-887.18,0.00023013,4]
[365778938,1749907845792,-460.0,0.00023013,4]
[365778939,1749907845801,-460.0,0.00023013,4]
[365778940,1749907845818,-460.0,0.00023013,4]
[365778941,1749907845827,-460.0,0.00023013,4]
[365778942,1749907845838,-460.0,0.00023013,4]
[365778943,1749907845848,-460.0,0.00023013,4]
[365778944,1749907845858,-420.0,0.00023013,4]
[365778945,1749907845868,-460.0,0.00023013,4]
[365778946,1749907845878,-460.0,0.00023013,4]
[365778947,1749907845887,-460.0,0.00023013,4]
[365778948,1749907845897,-310.0,0.00023013,4]
[365778949,1749907845906,-460.0,0.00023013,4]
[365778950,1749907845915,-460.0,0.00023013,4]
[365778951,1749907845925,-460.0,0.00023013,4]
[365778952,1749907845935,-460.0,0.00023013,4]
[365778953,1749907845944,-460.0,0.00023013,4]
[365778954,1749907845953,-460.0,0.00023013,4]
[365778955,1749907845963,-460.0,0.00023013,4]
[365778956,1749907845973,-460.0,0.00023013,4]
[365778957,1749907845982,-460.0,0.00023013,4]
[365778958,1749907845992,-460.0,0.00023013,4]
[365778959,1749907846002,-460.0,0.00023013,4]
[365778960,1749907846012,-460.0,0.00023013,4]
[365778961,1749907846022,-460.0,0.00023013,4]
[365778962,1749907846032,-460.0,0.00023013,4]
[365778963,1749907846041,-460.0,0.00023013,4]
[365778964,1749907846051,-460.0,0.00023013,4]
[365778965,1749907846061,-310.0,0.00023013,4]
[365778966,1749907846070,-1824.67,0.00023013,4]
[365778967,1749907846080,-460.0,0.00023013,4]
[365778968,1749907846090,-374.43680875,0.00023013,4]
[365778969,1749907846100,-460.0,0.00023013,4]
[365778970,1749907846111,-516.72,0.00023013,4]
[365778971,1749907846120,-460.0,0.00023013,4]